[Event "Early-Titled-Tuesday-Blitz-October-24-2023"]
[Site "Chess.com"]
[Date "2023.10.24"]
[Round "2"]
[White "Slovak_fighter2000"]
[Black "ChessBliss09"]
[Result "1-0"]
[WhiteElo "2428"]
[BlackElo "2028"]
[TimeControl "180+1"]
[EndTime "8:15:27 PDT"]
[Termination "Slovak_fighter2000 won by checkmate"]

1. d4 {[%clk 0:03:00.9]} 1... Nf6 {[%clk 0:02:59.4]} 2. Nf3 {[%clk 0:03:00.6]}
2... d5 {[%clk 0:02:59.1]} 3. c4 {[%clk 0:03:00.2]} 3... e6 {[%clk 0:02:57.9]}
4. g3 {[%clk 0:02:59.7]} 4... Bb4+ {[%clk 0:02:56.4]} 5. Bd2 {[%clk 0:02:58.6]}
5... Be7 {[%clk 0:02:56.4]} 6. Bg2 {[%clk 0:02:58.4]} 6... O-O {[%clk
0:02:56.4]} 7. O-O {[%clk 0:02:59]} 7... c6 {[%clk 0:02:55.8]} 8. Qc2 {[%clk
0:02:58.9]} 8... b6 {[%clk 0:02:54.9]} 9. Bf4 {[%clk 0:02:58]} 9... Bb7 {[%clk
0:02:51.7]} 10. Nbd2 {[%clk 0:02:58]} 10... Nbd7 {[%clk 0:02:44.5]} 11. e4
{[%clk 0:02:56.6]} 11... dxe4 {[%clk 0:02:42]} 12. Nxe4 {[%clk 0:02:57.5]} 12...
Nxe4 {[%clk 0:02:38.4]} 13. Qxe4 {[%clk 0:02:58.4]} 13... Nf6 {[%clk 0:02:38.4]}
14. Qe2 {[%clk 0:02:56.3]} 14... c5 {[%clk 0:02:36.1]} 15. Rad1 {[%clk
0:02:52.5]} 15... Qc8 {[%clk 0:02:10.2]} 16. d5 {[%clk 0:02:49.2]} 16... Rd8
{[%clk 0:01:05.4]} 17. Rfe1 {[%clk 0:02:17.5]} 17... Bd6 {[%clk 0:00:39.6]} 18.
dxe6 {[%clk 0:02:12.2]} 18... Bxf4 {[%clk 0:00:24.8]} 19. exf7+ {[%clk
0:02:08.8]} 19... Kxf7 {[%clk 0:00:24.8]} 20. gxf4 {[%clk 0:01:57.9]} 20... Rxd1
{[%clk 0:00:12.5]} 21. Rxd1 {[%clk 0:01:50.7]} 21... Qe8 {[%clk 0:00:10.5]} 22.
Ne5+ {[%clk 0:01:47.3]} 22... Kg8 {[%clk 0:00:10]} 23. Bxb7 {[%clk 0:01:46.6]}
23... Rd8 {[%clk 0:00:09]} 24. Rxd8 {[%clk 0:01:45]} 24... Qxd8 {[%clk
0:00:09.9]} 25. Qd3 {[%clk 0:01:44.4]} 25... Qc7 {[%clk 0:00:09]} 26. Bd5+
{[%clk 0:01:42.7]} 26... Nxd5 {[%clk 0:00:04.8]} 27. Qxd5+ {[%clk 0:01:42.4]}
27... Kf8 {[%clk 0:00:05.1]} 28. Qa8+ {[%clk 0:01:36.8]} 28... Ke7 {[%clk
0:00:04.3]} 29. Qxa7 {[%clk 0:01:37.1]} 29... Qxa7 {[%clk 0:00:01.8]} 30. Nc6+
{[%clk 0:01:36.8]} 30... Kf6 {[%clk 0:00:02.6]} 31. Nxa7 {[%clk 0:01:37.7]}
31... Kf5 {[%clk 0:00:03.2]} 32. Nc8 {[%clk 0:01:37.6]} 32... Kxf4 {[%clk
0:00:04.1]} 33. Nxb6 {[%clk 0:01:37.2]} 33... Ke4 {[%clk 0:00:04.5]} 34. a4
{[%clk 0:01:36.9]} 34... Kd4 {[%clk 0:00:05.4]} 35. a5 {[%clk 0:01:37.2]} 35...
Kd3 {[%clk 0:00:05.3]} 36. a6 {[%clk 0:01:37.7]} 36... Kc2 {[%clk 0:00:06.2]}
37. a7 {[%clk 0:01:38]} 37... Kxb2 {[%clk 0:00:07.1]} 38. a8=Q {[%clk
0:01:38.5]} 38... Kc3 {[%clk 0:00:08]} 39. Qa3+ {[%clk 0:01:38.2]} 39... Kd4
{[%clk 0:00:08.8]} 40. Qe3# {[%clk 0:01:38.1]} 1-0

[Event "Early-Titled-Tuesday-Blitz-October-24-2023"]
[Site "Chess.com"]
[Date "2023.10.24"]
[Round "2"]
[White "lefonghua"]
[Black "WFM_Sara_Adel"]
[Result "1-0"]
[WhiteElo "2655"]
[BlackElo "2190"]
[TimeControl "180+1"]
[EndTime "8:15:34 PDT"]
[Termination "lefonghua won by resignation"]

1. d4 {[%clk 0:03:00.9]} 1... Nf6 {[%clk 0:02:56.6]} 2. c4 {[%clk 0:03:01.1]}
2... g6 {[%clk 0:02:56.1]} 3. Nc3 {[%clk 0:03:01.3]} 3... Bg7 {[%clk 0:02:57]}
4. e4 {[%clk 0:03:01.4]} 4... d6 {[%clk 0:02:54.2]} 5. f4 {[%clk 0:03:01.9]}
5... Nbd7 {[%clk 0:02:52.2]} 6. Nf3 {[%clk 0:03:02]} 6... c5 {[%clk 0:02:52.4]}
7. d5 {[%clk 0:03:02.1]} 7... Qa5 {[%clk 0:02:51.5]} 8. Bd2 {[%clk 0:02:51.6]}
8... Qb6 {[%clk 0:02:51.1]} 9. Rb1 {[%clk 0:02:46.6]} 9... e5 {[%clk 0:02:50.2]}
10. fxe5 {[%clk 0:02:45.6]} 10... Nxe5 {[%clk 0:02:49.6]} 11. Nxe5 {[%clk
0:02:45.4]} 11... dxe5 {[%clk 0:02:49.9]} 12. Be2 {[%clk 0:02:43.1]} 12... O-O
{[%clk 0:02:44.4]} 13. O-O {[%clk 0:02:43.1]} 13... Ne8 {[%clk 0:02:39.4]} 14.
Be3 {[%clk 0:02:41.3]} 14... Qc7 {[%clk 0:02:36]} 15. a3 {[%clk 0:02:30]} 15...
a6 {[%clk 0:02:36.1]} 16. b4 {[%clk 0:02:27.8]} 16... b6 {[%clk 0:02:33.4]} 17.
bxc5 {[%clk 0:02:23.9]} 17... bxc5 {[%clk 0:02:32.6]} 18. Na4 {[%clk 0:02:23.7]}
18... Nd6 {[%clk 0:02:30.6]} 19. Nxc5 {[%clk 0:02:18.6]} 19... f5 {[%clk
0:01:52.6]} 20. Qc2 {[%clk 0:01:55.9]} 20... fxe4 {[%clk 0:01:25.8]} 21. Rxf8+
{[%clk 0:01:50.7]} 21... Bxf8 {[%clk 0:01:25.1]} 22. Nb3 {[%clk 0:01:31.9]}
22... Nf5 {[%clk 0:01:24.2]} 23. Qxe4 {[%clk 0:01:29.2]} 23... Rb8 {[%clk
0:01:15.2]} 24. Bf2 {[%clk 0:01:24]} 24... a5 {[%clk 0:01:00]} 25. c5 {[%clk
0:01:09.7]} 25... a4 {[%clk 0:00:43.4]} 26. Qxa4 {[%clk 0:01:00.6]} 26... Bxc5
{[%clk 0:00:40.9]} 27. Bxc5 {[%clk 0:00:51.2]} 27... Rxb3 {[%clk 0:00:40.4]} 28.
Qe8+ {[%clk 0:00:46.2]} 1-0

[Event "Early-Titled-Tuesday-Blitz-October-24-2023"]
[Site "Chess.com"]
[Date "2023.10.24"]
[Round "2"]
[White "dianamirza"]
[Black "karinachess1"]
[Result "0-1"]
[WhiteElo "2025"]
[BlackElo "2640"]
[TimeControl "180+1"]
[EndTime "8:15:42 PDT"]
[Termination "karinachess1 won by resignation"]

1. d4 {[%clk 0:03:00.9]} 1... Nf6 {[%clk 0:02:59]} 2. Nf3 {[%clk 0:03:00.7]}
2... g6 {[%clk 0:02:58.6]} 3. c4 {[%clk 0:03:00.3]} 3... Bg7 {[%clk 0:02:58.6]}
4. Nc3 {[%clk 0:03:00.3]} 4... O-O {[%clk 0:02:59.2]} 5. e4 {[%clk 0:02:59.8]}
5... d6 {[%clk 0:02:59.4]} 6. h3 {[%clk 0:02:59.3]} 6... c6 {[%clk 0:02:52.6]}
7. Be3 {[%clk 0:02:57.5]} 7... a6 {[%clk 0:02:52.7]} 8. Qd2 {[%clk 0:02:57.4]}
8... b5 {[%clk 0:02:52.7]} 9. Bd3 {[%clk 0:02:35.9]} 9... Nbd7 {[%clk
0:02:52.3]} 10. O-O {[%clk 0:02:33.2]} 10... bxc4 {[%clk 0:02:38.6]} 11. Bxc4
{[%clk 0:02:32.6]} 11... d5 {[%clk 0:02:39.2]} 12. exd5 {[%clk 0:02:25]} 12...
Nb6 {[%clk 0:02:39.5]} 13. Bb3 {[%clk 0:02:12.4]} 13... cxd5 {[%clk 0:02:35.8]}
14. Ne5 {[%clk 0:02:05.8]} 14... Be6 {[%clk 0:02:32]} 15. Bh6 {[%clk 0:01:47]}
15... a5 {[%clk 0:02:15.2]} 16. Bxg7 {[%clk 0:01:46.9]} 16... Kxg7 {[%clk
0:02:15.3]} 17. a4 {[%clk 0:01:46.7]} 17... Nc4 {[%clk 0:02:08.3]} 18. Qe2
{[%clk 0:01:41]} 18... Qb6 {[%clk 0:01:48.5]} 19. Nb5 {[%clk 0:01:25.3]} 19...
Rac8 {[%clk 0:01:41.2]} 20. Rac1 {[%clk 0:01:22.2]} 20... Nd6 {[%clk 0:01:35.9]}
21. Nxd6 {[%clk 0:01:13.6]} 21... Rxc1 {[%clk 0:01:25.4]} 22. Rxc1 {[%clk
0:01:03.9]} 22... exd6 {[%clk 0:01:22.3]} 23. Rc6 {[%clk 0:00:32.5]} 23... Qxb3
{[%clk 0:01:22.3]} 24. Rxd6 {[%clk 0:00:32.9]} 24... Qxa4 {[%clk 0:01:17.3]} 25.
Qa6 {[%clk 0:00:20]} 25... Qxd4 {[%clk 0:01:13.1]} 26. Nf3 {[%clk 0:00:13.9]}
26... Qxb2 {[%clk 0:01:12]} 27. Qxa5 {[%clk 0:00:09.3]} 27... Ne4 {[%clk
0:01:03.9]} 28. Qe1 {[%clk 0:00:06.8]} 28... Nxd6 {[%clk 0:01:02.5]} 0-1

[Event "Early-Titled-Tuesday-Blitz-October-24-2023"]
[Site "Chess.com"]
[Date "2023.10.24"]
[Round "2"]
[White "MatthewG-p4p"]
[Black "fen_fire"]
[Result "1-0"]
[WhiteElo "2814"]
[BlackElo "2555"]
[TimeControl "180+1"]
[EndTime "8:15:51 PDT"]
[Termination "MatthewG-p4p won on time"]

1. e4 {[%clk 0:03:00.9]} 1... c6 {[%clk 0:02:59.6]} 2. d4 {[%clk 0:03:00.8]}
2... d5 {[%clk 0:03:00]} 3. exd5 {[%clk 0:03:01.4]} 3... cxd5 {[%clk 0:03:00.8]}
4. Bd3 {[%clk 0:03:01.8]} 4... Nf6 {[%clk 0:03:01.2]} 5. h3 {[%clk 0:03:01.7]}
5... Qc7 {[%clk 0:02:57.2]} 6. Nf3 {[%clk 0:03:00.6]} 6... Nc6 {[%clk
0:02:56.3]} 7. c3 {[%clk 0:03:00.7]} 7... g6 {[%clk 0:02:56.6]} 8. O-O {[%clk
0:03:00.6]} 8... Bf5 {[%clk 0:02:56.4]} 9. Be2 {[%clk 0:03:00]} 9... Bg7 {[%clk
0:02:52.4]} 10. Re1 {[%clk 0:03:00.2]} 10... O-O {[%clk 0:02:52.2]} 11. Be3
{[%clk 0:02:57.1]} 11... a6 {[%clk 0:02:48.2]} 12. Qc1 {[%clk 0:02:51.5]} 12...
Rfe8 {[%clk 0:02:46.3]} 13. Bf4 {[%clk 0:02:49.9]} 13... Qc8 {[%clk 0:02:45.9]}
14. Nbd2 {[%clk 0:02:46.8]} 14... b5 {[%clk 0:02:42.1]} 15. Nb3 {[%clk 0:02:45]}
15... Nd7 {[%clk 0:02:37.8]} 16. Bf1 {[%clk 0:02:31.9]} 16... e5 {[%clk
0:02:04.4]} 17. dxe5 {[%clk 0:02:31.9]} 17... Ndxe5 {[%clk 0:02:04.6]} 18. Nxe5
{[%clk 0:02:31.2]} 18... Nxe5 {[%clk 0:02:04.8]} 19. Nd4 {[%clk 0:02:10.1]}
19... Nd3 {[%clk 0:01:53.4]} 20. Bxd3 {[%clk 0:02:09.3]} 20... Bxd3 {[%clk
0:01:32.2]} 21. Qd2 {[%clk 0:02:08.6]} 21... Rxe1+ {[%clk 0:01:12.1]} 22. Rxe1
{[%clk 0:02:09.3]} 22... Bf5 {[%clk 0:01:12.4]} 23. Bg5 {[%clk 0:01:55.9]} 23...
Bd7 {[%clk 0:00:33.9]} 24. Nb3 {[%clk 0:01:52.5]} 24... Be6 {[%clk 0:00:31.5]}
25. Be3 {[%clk 0:01:51.3]} 25... Qc4 {[%clk 0:00:24.6]} 26. Bd4 {[%clk
0:01:47.7]} 26... Bf8 {[%clk 0:00:24.3]} 27. Qg5 {[%clk 0:01:44.6]} 27... Bg7
{[%clk 0:00:17.7]} 28. Bxg7 {[%clk 0:01:41.7]} 28... Kxg7 {[%clk 0:00:18.6]} 29.
Qe5+ {[%clk 0:01:42.4]} 29... Kg8 {[%clk 0:00:18.4]} 30. Nd4 {[%clk 0:01:38.6]}
30... Re8 {[%clk 0:00:17.4]} 31. Qd6 {[%clk 0:01:34.9]} 31... Qxa2 {[%clk
0:00:09.1]} 32. Qc6 {[%clk 0:01:35.1]} 32... Rc8 {[%clk 0:00:04.9]} 33. Qb7
{[%clk 0:01:26.4]} 33... Re8 {[%clk 0:00:05]} 34. b4 {[%clk 0:01:25.7]} 34...
Qd2 {[%clk 0:00:04.4]} 35. Re3 {[%clk 0:01:26.4]} 35... Qc1+ {[%clk 0:00:04.3]}
36. Kh2 {[%clk 0:01:26.8]} 36... Qb1 {[%clk 0:00:04.4]} 37. Qc6 {[%clk
0:01:22.5]} 37... Rc8 {[%clk 0:00:03.5]} 38. Qxa6 {[%clk 0:01:22.9]} 38... Re8
{[%clk 0:00:01.2]} 39. Qxb5 {[%clk 0:01:23.1]} 1-0

[Event "Early-Titled-Tuesday-Blitz-October-24-2023"]
[Site "Chess.com"]
[Date "2023.10.24"]
[Round "2"]
[White "tomesao"]
[Black "GAZZAN_3000"]
[Result "0-1"]
[WhiteElo "2426"]
[BlackElo "2721"]
[TimeControl "180+1"]
[EndTime "8:15:54 PDT"]
[Termination "GAZZAN_3000 won by resignation"]

1. d4 {[%clk 0:03:00.9]} 1... Nf6 {[%clk 0:02:59.9]} 2. Nf3 {[%clk 0:03:00.4]}
2... c5 {[%clk 0:02:59.4]} 3. d5 {[%clk 0:03:00.2]} 3... b5 {[%clk 0:02:59.8]}
4. c4 {[%clk 0:02:59.6]} 4... Bb7 {[%clk 0:02:59.6]} 5. cxb5 {[%clk 0:02:55]}
5... Nxd5 {[%clk 0:02:58.7]} 6. e4 {[%clk 0:02:54.8]} 6... Nb6 {[%clk 0:02:59]}
7. Nc3 {[%clk 0:02:54]} 7... e6 {[%clk 0:02:59.6]} 8. e5 {[%clk 0:02:50.9]} 8...
d5 {[%clk 0:02:56.7]} 9. exd6 {[%clk 0:02:49.4]} 9... Bxd6 {[%clk 0:02:56.8]}
10. Be2 {[%clk 0:02:43.4]} 10... O-O {[%clk 0:02:56.1]} 11. O-O {[%clk
0:02:43.2]} 11... Qc7 {[%clk 0:02:54.9]} 12. a4 {[%clk 0:02:36.1]} 12... N8d7
{[%clk 0:02:51.9]} 13. a5 {[%clk 0:02:31.2]} 13... Nd5 {[%clk 0:02:51.7]} 14.
Ne4 {[%clk 0:02:25.5]} 14... Be7 {[%clk 0:02:42]} 15. a6 {[%clk 0:02:22.8]}
15... Bc8 {[%clk 0:02:40.5]} 16. Qc2 {[%clk 0:02:05.2]} 16... N7f6 {[%clk
0:02:34.1]} 17. Bd2 {[%clk 0:01:56.7]} 17... Nxe4 {[%clk 0:02:28.9]} 18. Qxe4
{[%clk 0:01:56.2]} 18... Bd7 {[%clk 0:02:28.7]} 19. Ne5 {[%clk 0:01:49.7]} 19...
Be8 {[%clk 0:02:24.3]} 20. Rfc1 {[%clk 0:01:43.6]} 20... Rb8 {[%clk 0:02:22.5]}
21. Ba5 {[%clk 0:01:18.6]} 21... Qc8 {[%clk 0:02:20.2]} 22. b4 {[%clk
0:01:04.9]} 22... Bxb5 {[%clk 0:02:17.2]} 23. bxc5 {[%clk 0:00:55.3]} 23... Bxe2
{[%clk 0:02:00.8]} 24. Qxe2 {[%clk 0:00:53]} 24... Bf6 {[%clk 0:01:54.3]} 25. c6
{[%clk 0:00:46.5]} 25... Bxe5 {[%clk 0:01:52.1]} 26. Qxe5 {[%clk 0:00:45]} 26...
Rb5 {[%clk 0:01:50.4]} 27. Qd6 {[%clk 0:00:35.1]} 27... Nb6 {[%clk 0:01:40.9]}
28. Bxb6 {[%clk 0:00:32]} 28... Rxb6 {[%clk 0:01:40.5]} 29. Qd7 {[%clk
0:00:18.5]} 29... g6 {[%clk 0:01:37.2]} 30. Ra3 {[%clk 0:00:14.8]} 30... Rd8
{[%clk 0:01:31.9]} 31. Qe7 {[%clk 0:00:12.3]} 31... Rxc6 {[%clk 0:01:29.8]} 32.
Rf1 {[%clk 0:00:02.1]} 32... Rd7 {[%clk 0:01:29.6]} 33. Qf6 {[%clk 0:00:01.7]}
33... Rxa6 {[%clk 0:01:29.6]} 34. Rh3 {[%clk 0:00:01.3]} 34... Qd8 {[%clk
0:01:26.7]} 35. Qf4 {[%clk 0:00:01.2]} 35... h5 {[%clk 0:01:26.1]} 36. Qe3
{[%clk 0:00:01.3]} 36... Rad6 {[%clk 0:01:25.6]} 37. Rg3 {[%clk 0:00:01.7]}
37... Rd3 {[%clk 0:01:25.5]} 38. Qe2 {[%clk 0:00:01.8]} 38... Rxg3 {[%clk
0:01:25.7]} 39. hxg3 {[%clk 0:00:02.7]} 39... a5 {[%clk 0:01:25.3]} 40. Qe3
{[%clk 0:00:03]} 40... Qa8 {[%clk 0:01:23.5]} 0-1

[Event "Early-Titled-Tuesday-Blitz-October-24-2023"]
[Site "Chess.com"]
[Date "2023.10.24"]
[Round "2"]
[White "verrbaa"]
[Black "mary-sanna"]
[Result "1-0"]
[WhiteElo "2455"]
[BlackElo "2201"]
[TimeControl "180+1"]
[EndTime "8:15:58 PDT"]
[Termination "verrbaa won by resignation"]

1. e4 {[%clk 0:03:00.9]} 1... c5 {[%clk 0:03:00]} 2. Nf3 {[%clk 0:03:00]} 2...
Nc6 {[%clk 0:02:59.9]} 3. Nc3 {[%clk 0:02:56.9]} 3... g6 {[%clk 0:02:53.8]} 4.
d4 {[%clk 0:02:55.7]} 4... cxd4 {[%clk 0:02:53.9]} 5. Nxd4 {[%clk 0:02:56.6]}
5... Bg7 {[%clk 0:02:54.4]} 6. Nb3 {[%clk 0:02:50.6]} 6... Nf6 {[%clk
0:02:52.3]} 7. Be2 {[%clk 0:02:47.5]} 7... O-O {[%clk 0:02:51.9]} 8. Bg5 {[%clk
0:02:37.1]} 8... d6 {[%clk 0:02:36.3]} 9. Qd2 {[%clk 0:02:35.7]} 9... a6 {[%clk
0:02:24.2]} 10. O-O {[%clk 0:02:08.9]} 10... b6 {[%clk 0:02:17.3]} 11. Rfe1
{[%clk 0:01:56.1]} 11... Bb7 {[%clk 0:02:16.8]} 12. Bf1 {[%clk 0:01:56.3]} 12...
Re8 {[%clk 0:01:59.2]} 13. Rad1 {[%clk 0:01:49.7]} 13... Qc7 {[%clk 0:01:58.7]}
14. Bxf6 {[%clk 0:01:46]} 14... Bxf6 {[%clk 0:01:58.2]} 15. Nd5 {[%clk
0:01:45.8]} 15... Qc8 {[%clk 0:01:35.6]} 16. Nxb6 {[%clk 0:01:42.7]} 16... Qd8
{[%clk 0:01:32.2]} 17. Nxa8 {[%clk 0:01:42.8]} 17... Qxa8 {[%clk 0:01:33.1]} 18.
c3 {[%clk 0:01:40.3]} 18... Ne5 {[%clk 0:01:30.3]} 19. f4 {[%clk 0:01:37.9]}
19... Ng4 {[%clk 0:01:22.4]} 20. h3 {[%clk 0:01:15.5]} 20... Qa7+ {[%clk
0:01:18.8]} 21. Nd4 {[%clk 0:01:15.4]} 21... Nh6 {[%clk 0:00:50.3]} 22. Kh2
{[%clk 0:01:08.4]} 22... e5 {[%clk 0:00:41.7]} 23. Nf3 {[%clk 0:01:03.5]} 23...
exf4 {[%clk 0:00:36.1]} 24. Qxd6 {[%clk 0:01:01.4]} 24... Bd8 {[%clk 0:00:20.6]}
25. Qd7 {[%clk 0:00:58.6]} 25... Rf8 {[%clk 0:00:15.6]} 26. Bc4 {[%clk
0:00:46.4]} 26... Ba8 {[%clk 0:00:11.7]} 27. Qxa7 {[%clk 0:00:45.8]} 1-0

[Event "Early-Titled-Tuesday-Blitz-October-24-2023"]
[Site "Chess.com"]
[Date "2023.10.24"]
[Round "2"]
[White "Road2GM3000"]
[Black "djokovic74"]
[Result "0-1"]
[WhiteElo "2391"]
[BlackElo "2694"]
[TimeControl "180+1"]
[EndTime "8:16:01 PDT"]
[Termination "djokovic74 won by checkmate"]

1. d4 {[%clk 0:02:58.7]} 1... e6 {[%clk 0:02:57.5]} 2. c4 {[%clk 0:02:55.9]}
2... Nf6 {[%clk 0:02:57.8]} 3. Nc3 {[%clk 0:02:53.5]} 3... Bb4 {[%clk 0:02:58]}
4. Nf3 {[%clk 0:02:49.4]} 4... O-O {[%clk 0:02:55.5]} 5. Bg5 {[%clk 0:02:42.1]}
5... c5 {[%clk 0:02:51.3]} 6. e3 {[%clk 0:02:38.9]} 6... cxd4 {[%clk 0:02:47]}
7. exd4 {[%clk 0:02:35.2]} 7... d5 {[%clk 0:02:46.6]} 8. cxd5 {[%clk 0:02:33.2]}
8... exd5 {[%clk 0:02:44.2]} 9. Be2 {[%clk 0:02:33.7]} 9... Nc6 {[%clk
0:02:43.2]} 10. O-O {[%clk 0:02:33.7]} 10... Be7 {[%clk 0:02:43.3]} 11. Ne5
{[%clk 0:02:33.1]} 11... Be6 {[%clk 0:02:37.6]} 12. Rc1 {[%clk 0:02:25.5]} 12...
Rc8 {[%clk 0:02:31.1]} 13. Qb3 {[%clk 0:02:21.5]} 13... Nxd4 {[%clk 0:02:18]}
14. Qd1 {[%clk 0:02:21.3]} 14... Nxe2+ {[%clk 0:02:16.9]} 15. Nxe2 {[%clk
0:02:20.8]} 15... Rxc1 {[%clk 0:01:56.8]} 16. Bxc1 {[%clk 0:02:21.7]} 16... Qc7
{[%clk 0:01:53.2]} 17. Bf4 {[%clk 0:02:20.8]} 17... Bd6 {[%clk 0:01:53.5]} 18.
Nd3 {[%clk 0:02:19.1]} 18... Rc8 {[%clk 0:01:48.9]} 19. Re1 {[%clk 0:02:17.6]}
19... Bg4 {[%clk 0:01:44.5]} 20. Bxd6 {[%clk 0:02:15.3]} 20... Qxd6 {[%clk
0:01:45]} 21. f3 {[%clk 0:02:14.8]} 21... Qb6+ {[%clk 0:01:44.9]} 22. Kh1 {[%clk
0:02:14]} 22... Bf5 {[%clk 0:01:42.8]} 23. Nef4 {[%clk 0:02:03.4]} 23... Bxd3
{[%clk 0:01:36.6]} 24. Nxd3 {[%clk 0:02:04.3]} 24... h6 {[%clk 0:01:33.3]} 25.
Qd2 {[%clk 0:02:03.1]} 25... Qd4 {[%clk 0:01:31]} 26. Rd1 {[%clk 0:02:02.8]}
26... Kf8 {[%clk 0:01:14.7]} 27. h3 {[%clk 0:02:01.2]} 27... b6 {[%clk
0:01:12.1]} 28. Nb4 {[%clk 0:01:55.8]} 28... Qxd2 {[%clk 0:01:08.1]} 29. Rxd2
{[%clk 0:01:56.7]} 29... Rc5 {[%clk 0:01:05.8]} 30. Kg1 {[%clk 0:01:53.9]} 30...
Ke7 {[%clk 0:01:02.5]} 31. Kf2 {[%clk 0:01:54.2]} 31... Kd6 {[%clk 0:01:02.6]}
32. Ke3 {[%clk 0:01:53.5]} 32... Rc8 {[%clk 0:00:58.5]} 33. g4 {[%clk 0:01:51]}
33... a5 {[%clk 0:00:57]} 34. Nd3 {[%clk 0:01:50.2]} 34... Rc4 {[%clk
0:00:53.3]} 35. Nf4 {[%clk 0:01:42.5]} 35... g5 {[%clk 0:00:50.1]} 36. Ne2
{[%clk 0:01:40.1]} 36... Nd7 {[%clk 0:00:44.3]} 37. Ng3 {[%clk 0:01:39.8]} 37...
Ne5 {[%clk 0:00:38.4]} 38. Nf5+ {[%clk 0:01:39.7]} 38... Kc5 {[%clk 0:00:39]}
39. Nxh6 {[%clk 0:01:38.2]} 39... Rf4 {[%clk 0:00:39.1]} 40. Rf2 {[%clk
0:01:33.7]} 40... d4+ {[%clk 0:00:39.2]} 41. Ke2 {[%clk 0:01:32.5]} 41... Kc4
{[%clk 0:00:30.8]} 42. Nf5 {[%clk 0:01:32.2]} 42... a4 {[%clk 0:00:27.3]} 43.
Nd6+ {[%clk 0:01:31.5]} 43... Kd5 {[%clk 0:00:27.3]} 44. Ne4 {[%clk 0:01:30.3]}
44... f6 {[%clk 0:00:25.9]} 45. Ng3 {[%clk 0:01:17.2]} 45... d3+ {[%clk
0:00:24.5]} 46. Ke3 {[%clk 0:01:17.1]} 46... Rd4 {[%clk 0:00:25.2]} 47. Ne4
{[%clk 0:01:13.8]} 47... Nc4# {[%clk 0:00:25]} 0-1

[Event "Early-Titled-Tuesday-Blitz-October-24-2023"]
[Site "Chess.com"]
[Date "2023.10.24"]
[Round "2"]
[White "deepfear"]
[Black "dapsay"]
[Result "1/2-1/2"]
[WhiteElo "1784"]
[BlackElo "2400"]
[TimeControl "180+1"]
[EndTime "8:16:04 PDT"]
[Termination "Game drawn by repetition"]

1. e4 {[%clk 0:02:45.1]} 1... c5 {[%clk 0:02:59.1]} 2. Nc3 {[%clk 0:02:43.9]}
2... e6 {[%clk 0:02:58.6]} 3. g3 {[%clk 0:02:44.1]} 3... g6 {[%clk 0:02:58]} 4.
Bg2 {[%clk 0:02:44.7]} 4... Bg7 {[%clk 0:02:58.5]} 5. d3 {[%clk 0:02:43.5]} 5...
Nc6 {[%clk 0:02:59]} 6. Be3 {[%clk 0:02:41.8]} 6... d6 {[%clk 0:02:56.7]} 7. Nf3
{[%clk 0:02:40.1]} 7... Nge7 {[%clk 0:02:56]} 8. Qd2 {[%clk 0:02:39.9]} 8... h6
{[%clk 0:02:55.4]} 9. O-O {[%clk 0:02:36.6]} 9... Nd4 {[%clk 0:02:54.2]} 10. Nd1
{[%clk 0:02:26.7]} 10... Nec6 {[%clk 0:02:51]} 11. c3 {[%clk 0:02:26.8]} 11...
Nxf3+ {[%clk 0:02:50.9]} 12. Bxf3 {[%clk 0:02:26.5]} 12... h5 {[%clk 0:02:48.3]}
13. h4 {[%clk 0:02:22.9]} 13... Qe7 {[%clk 0:02:44]} 14. Bg2 {[%clk 0:02:18.6]}
14... Bd7 {[%clk 0:02:43.8]} 15. d4 {[%clk 0:02:10.5]} 15... b6 {[%clk
0:02:29.7]} 16. dxc5 {[%clk 0:01:58]} 16... dxc5 {[%clk 0:02:29.1]} 17. Bg5
{[%clk 0:01:47.5]} 17... f6 {[%clk 0:02:26.5]} 18. Be3 {[%clk 0:01:44.9]} 18...
Rd8 {[%clk 0:02:26.6]} 19. Qe2 {[%clk 0:01:38]} 19... Ne5 {[%clk 0:02:22.6]} 20.
f3 {[%clk 0:01:24.4]} 20... Kf7 {[%clk 0:02:21.6]} 21. Nf2 {[%clk 0:01:19.9]}
21... Bc6 {[%clk 0:02:08]} 22. Rad1 {[%clk 0:01:16.4]} 22... Qb7 {[%clk
0:02:07.7]} 23. Rxd8 {[%clk 0:01:08.6]} 23... Rxd8 {[%clk 0:02:06.8]} 24. Rd1
{[%clk 0:01:08.7]} 24... Rxd1+ {[%clk 0:02:04.9]} 25. Qxd1 {[%clk 0:01:09.6]}
25... Nc4 {[%clk 0:02:03.7]} 26. Bc1 {[%clk 0:01:04.5]} 26... Ne5 {[%clk
0:01:52.5]} 27. Nd3 {[%clk 0:01:00.6]} 27... f5 {[%clk 0:01:43.2]} 28. Nxe5+
{[%clk 0:00:54.2]} 28... Bxe5 {[%clk 0:01:43.3]} 29. exf5 {[%clk 0:00:50.7]}
29... exf5 {[%clk 0:01:41.1]} 30. Qe1 {[%clk 0:00:41.5]} 30... Bxf3 {[%clk
0:01:03.5]} 31. Bxf3 {[%clk 0:00:39.5]} 31... Qxf3 {[%clk 0:01:03.7]} 32. Qxe5
{[%clk 0:00:38.6]} 32... Qd1+ {[%clk 0:01:03.8]} 33. Kg2 {[%clk 0:00:29.8]}
33... Qc2+ {[%clk 0:01:00.5]} 34. Kf3 {[%clk 0:00:22]} 34... Qxc1 {[%clk
0:00:58.5]} 35. Qc7+ {[%clk 0:00:18.8]} 35... Kf6 {[%clk 0:00:58.7]} 36. Qd6+
{[%clk 0:00:18.4]} 36... Kf7 {[%clk 0:00:56.9]} 37. Qd7+ {[%clk 0:00:18.7]}
37... Kf6 {[%clk 0:00:57.3]} 38. Qd6+ {[%clk 0:00:19.1]} 38... Kg7 {[%clk
0:00:57.8]} 39. Qe7+ {[%clk 0:00:18.9]} 39... Kh6 {[%clk 0:00:57.6]} 40. Qf8+
{[%clk 0:00:18.8]} 40... Kh7 {[%clk 0:00:58.1]} 41. Qf7+ {[%clk 0:00:19.1]}
41... Kh8 {[%clk 0:00:58.6]} 42. Qf8+ {[%clk 0:00:19.4]} 42... Kh7 {[%clk
0:00:59.1]} 43. Qf7+ {[%clk 0:00:19.8]} 43... Kh8 {[%clk 0:00:59.6]} 44. Qf6+
{[%clk 0:00:19.2]} 44... Kh7 {[%clk 0:00:58.9]} 45. Qf7+ {[%clk 0:00:19.6]}
1/2-1/2